bitfinex/quotes_ETHUSD_20250404
["timestamp","ask_amount","ask_price","bid_price","bid_amount"]
[1743780744937,5.54108,1804.7,1804.3,5.54224]
[1743780745171,5.54108,1804.7,1804.3,5.54217]
[1743780745374,11.08307,1804.6,1804.2,5.54251]
[1743780745589,11.08434,1804.4,1804.0,5.54312]
[1743780745768,3.0,1804.4,1804.0,5.54303]
[1743780746088,12.94373,1804.7,1804.3,5.54227]
[1743780746249,8.54143,1804.6,1804.2,5.54244]
[1743780746433,5.148516,1804.6,1803.9,5.54354]
[1743780746637,5.148516,1804.6,1803.8,0.7613]
[1743780746638,3.0,1804.6,1804.3,5.54229]
[1743780746869,8.54159,1804.6,1803.9,5.54351]
[1743780747076,0.4406,1805.0,1804.2,0.7583]
[1743780747243,5.54065,1804.9,1804.1,6.30099]
[1743780747469,5.54065,1804.9,1804.4,5.54189]
[1743780747665,5.54065,1804.9,1804.6,5.54135]
[1743780747666,0.598125,1804.9,1804.6,5.54135]
[1743780748005,0.4406,1805.3,1805.0,5.54001]
[1743780748171,12.49907,1805.4,1805.0,11.07997]
[1743780748360,6.96,1805.4,1805.1,5.53984]
[1743780748756,6.96,1805.4,1805.0,5.54006]
[1743780748964,12.49901,1805.4,1805.0,11.08004]
[1743780749275,6.96,1805.4,1805.2,5.53955]
[1743780749474,6.96,1805.4,1805.0,5.54015]
[1743780749671,5.53928,1805.3,1804.9,5.54037]
[1743780749984,8.553924,1805.4,1805.0,5.53998]
[1743780750296,8.553924,1805.4,1805.0,5.54014]
[1743780750461,14.092974,1805.4,1805.0,5.54014]
[1743780750664,5.5393,1805.3,1804.9,5.54029]
[1743780750858,8.553924,1805.4,1804.8,5.5405]
[1743780751120,5.54047,1804.9,1804.4,5.54199]
[1743780751296,5.98116,1804.9,1804.5,5.54166]
[1743780751498,0.4406,1804.9,1804.6,5.54128]
[1743780751795,0.4406,1804.9,1804.5,5.54167]
[1743780751796,5.98109,1804.9,1804.5,5.54167]
[1743780752097,5.54078,1804.8,1804.4,5.54187]
[1743780752281,5.98108,1804.9,1804.5,5.54151]
[1743780752489,5.54107,1804.8,1804.3,0.8053]
[1743780752663,5.54182,1804.5,1804.1,11.0857]
[1743780752858,5.5414,1804.6,1804.1,5.54275]
[1743780753062,5.5418,1804.5,1804.1,5.54275]
[1743780753369,5.54143,1804.6,1804.2,5.54258]
[1743780753695,5.54182,1804.5,1804.1,5.54288]
[1743780753996,6.949692,1804.6,1804.2,5.54248]
[1743780754201,1.408252,1804.6,1803.9,5.54349]
[1743780754499,8.54111,1804.7,1804.2,5.54245]
[1743780755122,8.54111,1804.7,1804.1,5.54288]
[1743780755123,5.54152,1804.6,1804.1,5.54288]
[1743780755413,5.54172,1804.5,1804.1,5.54288]
[1743780755613,11.08311,1804.6,1804.2,5.54254]
[1743780755781,1.408311,1804.6,1804.1,5.54288]
[1743780755981,5.54186,1804.5,1804.2,5.54262]
[1743780756177,3.0,1804.7,1804.3,5.54224]
[1743780756394,5.54162,1804.6,1803.8,5.5436]
[1743780756718,5.54162,1804.6,1804.2,5.54245]
[1743780756927,8.54112,1804.7,1803.7,6.8617]
[1743780757080,8.54087,1804.8,1803.9,6.09354]
[1743780757591,5.54173,1804.5,1804.1,11.08561]
[1743780757805,5.54126,1804.7,1804.0,0.55]
[1743780757994,3.0,1804.8,1804.1,5.54292]
[1743780757995,8.54081,1804.8,1804.1,5.54292]
[1743780758192,5.54179,1804.5,1804.1,5.54288]
[1743780758394,5.54149,1804.6,1804.2,5.54245]
[1743780758591,8.54084,1804.8,1804.4,5.54184]
[1743780758904,5.54108,1804.7,1804.3,5.54208]
[1743780759228,8.54089,1804.8,1804.4,5.54171]
[1743780759415,5.5415,1804.6,1804.2,6.3283]
[1743780759621,11.08317,1804.6,1804.2,6.3283]
[1743780759826,3.0,1804.5,1804.0,5.54308]
[1743780759994,0.854089,1804.7,1803.9,6.32922]
[1743780760202,11.52533,1804.3,1803.9,5.54341]
[1743780760384,11.5254,1804.3,1803.9,5.54341]
[1743780760584,0.4406,1804.3,1803.8,5.5438]
[1743780760785,0.4406,1804.3,1803.6,6.34374]
[1743780760786,5.54325,1804.0,1803.6,6.34374]
[1743780760980,3.0,1804.2,1803.7,5.54405]
[1743780761292,5.54324,1804.0,1803.6,5.54429]
[1743780761496,11.08676,1804.0,1803.6,5.54429]
[1743780761696,5.54324,1804.0,1803.6,5.54429]
[1743780762013,3.0,1804.2,1803.7,5.54386]
[1743780762014,5.54289,1804.2,1803.7,5.54386]
[1743780762209,5.54296,1804.1,1803.7,5.54386]
[1743780762396,5.54328,1804.0,1803.7,5.54386]
[1743780762602,1.108624,1804.0,1803.3,0.7993]
[1743780762791,5.54428,1803.7,1803.3,5.54517]
[1743780762990,3.0,1803.6,1803.3,5.54517]
[1743780763205,5.54478,1803.5,1803.2,5.54564]
[1743780763436,8.54453,1803.6,1803.2,11.09117]
[1743780763630,5.54524,1803.4,1803.1,0.05]
[1743780763926,5.98625,1803.3,1803.1,0.05]
[1743780764129,11.53185,1803.3,1803.1,0.05]
[1743780764329,8.54569,1803.2,1803.1,0.05]
[1743780766817,5.9862,1803.3,1803.1,0.05]
[1743780767126,0.854433,1803.6,1803.1,5.59588]
[1743780767333,3.0,1803.4,1803.1,11.14177]
[1743780767505,5.54449,1803.6,1803.2,5.54563]
[1743780767704,5.54449,1803.6,1803.2,5.54568]
[1743780767913,5.54449,1803.6,1803.2,5.54546]
[1743780768306,3.4406,1803.7,1803.1,5.59592]
[1743780768607,5.54538,1803.3,1803.1,0.05]
[1743780768803,5.54569,1803.2,1803.1,0.05]
[1743780769534,5.98598,1803.3,1803.1,0.05]
[1743780769836,5.5451,1803.4,1803.1,0.05]
[1743780770035,3.0,1803.4,1803.2,5.54556]
[1743780770239,3.0,1803.4,1803.1,5.59589]
[1743780770542,5.54549,1803.3,1803.1,0.05]
[1743780771040,3.0,1803.2,1803.1,0.05]
[1743780771339,8.98629,1803.2,1803.1,0.05]
[1743780771497,18.39119939,1803.2,1803.1,0.05]
[1743780773236,15.39119939,1803.2,1803.1,0.05]
[1743780773442,18.39119939,1803.2,1803.1,0.05]
[1743780773738,5.548,1802.5,1802.2,0.8195]
[1743780774240,5.54692,1802.8,1802.4,5.54797]
[1743780774440,5.54639,1803.0,1802.6,5.5474]
[1743780774737,5.54639,1803.0,1802.1,8.59904]
[1743780774738,5.54735,1802.7,1802.1,0.05]
[1743780774942,5.54828,1802.4,1802.1,0.05]
[1743780775124,5.54723,1802.7,1802.1,0.05]
[1743780775125,5.54877,1802.2,1802.1,0.05]
[1743780775734,5.98918,1802.3,1802.1,0.05]
[1743780775947,6.588098,1802.3,1802.1,0.05]
[1743780776236,5.98824,1802.6,1802.2,5.54862]
[1743780776399,5.54702,1802.8,1802.4,5.54814]
[1743780776597,5.98743,1802.9,1802.5,5.54772]
[1743780776934,5.54695,1802.8,1802.4,5.54814]
[1743780777108,5.54676,1802.9,1802.4,5.54798]
[1743780777311,5.54676,1802.9,1802.5,5.54771]
[1743780777507,5.5468,1802.9,1802.5,5.5478]
[1743780777839,5.5468,1802.9,1802.5,5.54766]
[1743780778416,5.5468,1802.9,1802.5,11.09534]
[1743780778615,5.5468,1802.9,1802.5,5.54766]
[1743780778815,5.5468,1802.9,1802.5,11.09539]
[1743780779231,5.96343199,1802.9,1802.5,11.09539]
[1743780779542,5.54704,1802.8,1802.4,5.54799]
[1743780779739,5.54729,1802.7,1802.3,5.54842]
[1743780779941,3.4406,1802.7,1802.1,0.05]
[1743780780108,5.54838,1802.4,1802.1,5.59904]
[1743780780308,6.103218,1802.4,1802.1,0.05]
[1743780780509,5.54846,1802.3,1802.1,0.05]
[1743780780912,0.97043008,1802.4,1802.1,5.59888]
[1743780781232,0.41559208,1802.4,1802.1,0.05]
[1743780781399,3.0,1802.6,1802.2,5.54876]
[1743780781400,5.54756,1802.6,1802.2,5.54876]
[1743780781603,11.09533,1802.6,1802.2,5.54876]
[1743780781846,5.54756,1802.6,1802.2,5.54876]
[1743780782144,5.54805,1802.5,1802.1,5.59891]
[1743780782442,0.554805,1802.5,1802.2,5.54877]
[1743780782636,8.98788,1802.7,1802.2,5.54877]
[1743780782637,8.98788,1802.7,1802.3,5.54829]
[1743780782844,5.54764,1802.6,1802.3,5.54844]
[1743780783044,10.76800699,1802.9,1802.1,0.05]
[1743780783249,5.96329199,1802.9,1802.5,5.54766]
[1743780783401,5.54731,1802.7,1802.3,5.54828]
[1743780783718,3.4406,1802.5,1802.1,0.05]
[1743780783905,5.54868,1802.3,1802.1,0.05]
[1743780784106,5.54877,1802.2,1802.1,0.05]
[1743780784446,5.54764,1802.6,1802.2,5.54855]
[1743780784646,3.0,1802.5,1802.2,5.54855]
[1743780784847,5.98754,1802.8,1802.4,5.54811]
[1743780785047,5.54724,1802.7,1802.3,11.09676]
[1743780785214,8.98758,1802.8,1802.1,5.59906]
[1743780785416,8.54698,1802.8,1802.5,5.54784]
[1743780785765,11.09473,1802.7,1802.3,5.54844]
[1743780786047,6.99883379,1802.8,1802.4,5.54798]
[1743780786211,11.09476,1802.7,1802.3,5.54841]
[1743780786407,5.54765,1802.6,1802.2,11.09736]
[1743780786749,5.54693,1802.8,1802.4,5.54798]
[1743780787053,0.41286617,1802.9,1802.5,5.54758]
[1743780787214,5.54661,1802.9,1802.1,0.838]
[1743780787550,7.3926,1803.1,1802.2,6.09877]
[1743780787850,5.54615,1803.1,1802.7,11.09435]
[1743780788150,5.54539,1803.3,1802.9,5.54651]
[1743780788334,5.54621,1803.1,1802.7,5.54711]
[1743780788686,5.54634,1803.0,1802.6,5.54739]
[1743780788813,5.54574,1803.2,1802.4,0.8038]
[1743780789156,5.54541,1803.3,1803.0,5.5463]
[1743780789447,5.5455,1803.3,1802.9,0.8244]
[1743780789607,0.40763853,1803.3,1802.9,6.37082]
[1743780789810,5.83414297,1803.5,1803.1,5.54578]
[1743780790139,11.0898,1803.5,1803.1,5.54578]
[1743780790448,11.0898,1803.5,1803.0,5.54628]
[1743780790449,5.83312829,1803.8,1803.4,5.54498]
[1743780790651,5.54364,1803.9,1803.5,5.54452]
[1743780790820,0.41088367,1804.0,1803.6,5.54416]
[1743780791011,0.28922595,1804.2,1803.9,5.54335]
[1743780791207,0.28922595,1804.2,1803.9,5.54334]
[1743780791414,0.28922595,1804.2,1803.9,11.08668]
[1743780791646,5.54198,1804.5,1803.8,0.7541]
[1743780791647,5.54198,1804.5,1804.1,5.54279]
[1743780791859,5.54198,1804.5,1804.1,5.54276]
[1743780792056,0.4406,1804.6,1803.9,6.09353]
[1743780792213,5.95324019,1804.7,1804.3,5.54231]
[1743780792449,0.41209019,1804.7,1804.4,5.54176]
[1743780792648,0.28915213,1804.8,1804.3,0.8263]
[1743780792876,0.05,1804.9,1804.8,5.54078]
[1743780793075,0.05,1804.9,1804.8,6.36708]
[1743780793281,0.05,1804.9,1804.8,7.61883456]
[1743780793589,0.05,1804.9,1804.8,7.56343643]
[1743780793791,1e-05,1804.9,1804.8,8.16883266]
[1743780794086,5.53772,1805.8,1805.0,0.55]
[1743780794291,3.0,1805.7,1805.3,5.539]
[1743780794451,6.02812,1805.9,1805.3,5.539]
[1743780794649,0.05,1805.9,1805.5,5.5385]
[1743780794953,0.05,1805.9,1805.6,11.0763]
[1743780795152,0.05,1805.9,1805.6,5.53811]
[1743780795376,0.05,1805.9,1805.6,11.0763]
[1743780795683,0.05,1805.9,1805.6,5.53811]
[1743780795845,0.05,1805.9,1805.4,0.7735]
[1743780796051,5.58754,1805.9,1805.4,6.3123]
[1743780796250,5.58754,1805.9,1805.4,11.8511]
[1743780796478,5.58754,1805.9,1805.4,6.3123]
[1743780796699,5.53777,1805.8,1805.4,0.7735]
[1743780796892,5.53816,1805.7,1805.1,6.30582]
[1743780797185,5.53845,1805.6,1805.1,6.30582]
[1743780797385,5.53845,1805.6,1805.1,6.30572]
[1743780797688,5.53865,1805.5,1805.1,0.766]
[1743780797888,6.646111,1805.6,1805.1,0.766]
[1743780798089,4.162488,1805.9,1805.1,0.766]
[1743780798264,5.53798,1805.8,1805.2,5.53933]
[1743780798464,11.07599,1805.8,1805.3,5.539]
[1743780798987,5.53823,1805.7,1805.2,5.53933]
[1743780799196,6.7615778,1805.8,1805.3,5.53905]
[1743780799364,5.53885,1805.5,1805.1,0.766]
[1743780799567,0.4406,1805.7,1805.3,5.53902]
[1743780799768,0.05,1805.9,1805.7,6.35256]
[1743780799976,0.05,1805.9,1805.8,5.53771]
[1743780800490,0.05,1805.9,1805.7,0.8146]
[1743780800863,0.05,1805.9,1805.0,0.7575]
[1743780800864,3.0,1805.8,1805.0,0.7575]
[1743780801106,5.53897,1805.4,1805.0,0.7575]
[1743780801313,11.07814,1805.4,1805.0,0.7575]
[1743780801606,5.53858,1805.6,1805.2,5.53953]
[1743780801792,8.53805,1805.7,1805.2,5.53953]
[1743780801990,5.53833,1805.6,1805.0,0.7575]
[1743780802305,5.53878,1805.5,1805.0,6.29744]
[1743780802513,5.53943,1805.3,1805.0,0.7575]
[1743780802804,0.553943,1805.2,1804.8,5.54076]
[1743780802980,5.53939,1805.3,1804.8,5.54076]
[1743780803309,5.53927,1805.3,1804.8,5.54076]
[1743780803666,5.5396,1805.2,1804.8,5.54075]
[1743780804207,3.40799062,1805.2,1804.4,6.3046]
[1743780804371,5.54062,1804.9,1804.4,6.30447]
[1743780804566,3.40799062,1805.2,1804.5,0.60541251]
[1743780804785,5.53866,1805.5,1805.0,5.5399]
[1743780804962,5.94341396,1805.7,1805.3,5.53908]
[1743780805168,5.94341396,1805.7,1805.2,11.07883]
[1743780805469,5.53845,1805.6,1805.2,6.647173]
[1743780805670,5.94341396,1805.7,1805.1,11.07947]
[1743780805888,5.53938,1805.3,1804.9,6.33556]
[1743780806090,5.53897,1805.4,1804.9,6.33556]
[1743780806091,5.53988,1805.1,1804.9,0.7953]
[1743780806288,5.53973,1805.2,1804.7,5.54089]
[1743780806478,5.97929,1805.5,1804.6,5.54135]
[1743780806479,5.54022,1805.0,1804.6,5.54135]
[1743780806676,5.54048,1804.9,1804.5,5.54162]
[1743780807005,9.093543,1805.2,1804.7,5.54097]
[1743780807173,5.54007,1805.1,1804.7,5.54097]
[1743780807532,5.54007,1805.1,1804.4,6.30953]
[1743780807533,5.53988,1805.1,1804.4,6.30957]
[1743780807806,5.54102,1804.8,1804.4,6.30957]
[1743780807979,5.54086,1804.8,1804.4,0.7678]
[1743780808375,5.5414,1804.6,1804.2,5.54261]
[1743780808575,3.0,1804.7,1804.2,0.7855]
[1743780808980,5.5414,1804.6,1804.2,6.32804]
[1743780809416,5.54105,1804.8,1804.3,5.54217]
[1743780809588,5.54102,1804.8,1804.4,5.54188]
[1743780809784,5.54115,1804.7,1804.3,5.54231]
[1743780809986,5.54115,1804.7,1804.3,5.54209]
[1743780810307,5.96168152,1804.9,1804.4,5.54199]
[1743780810478,5.54126,1804.7,1804.3,5.54216]
[1743780810684,5.54126,1804.7,1804.3,11.08427]
[1743780810904,11.08117,1804.9,1804.4,5.542]
[1743780811104,11.08056,1805.0,1804.6,5.54118]
[1743780811310,5.54012,1805.1,1804.4,0.55]
[1743780811611,5.54065,1804.9,1804.7,0.7996]
[1743780811771,5.54018,1805.0,1804.7,6.34065]
[1743780811976,5.53958,1805.2,1804.7,1.433665]
[1743780812189,5.53955,1805.2,1804.8,5.54066]
[1743780812507,5.53989,1805.1,1804.7,6.34051]
[1743780812808,5.95474471,1805.1,1804.7,6.34048]
[1743780813183,0.4406,1805.6,1804.9,5.54047]
[1743780813407,5.97907,1805.6,1805.2,5.53954]
[1743780813582,11.07632,1805.7,1805.3,5.53921]
[1743780813782,5.95228149,1805.7,1805.3,5.53907]
[1743780813990,5.95228149,1805.7,1805.4,5.53892]
[1743780814186,12.96127,1805.9,1805.5,5.53852]
[1743780814187,12.52067,1805.9,1805.5,5.53852]
[1743780814385,5.58767,1805.9,1805.5,6.092302]
[1743780814587,5.53829,1805.7,1805.2,6.29978]
[1743780814790,0.05,1805.9,1805.3,5.53916]
[1743780814975,5.58744,1805.9,1805.3,5.53901]
[1743780815181,5.58744,1805.9,1805.5,5.53841]
[1743780815405,0.05,1805.9,1805.7,5.53785]
[1743780815828,0.05,1805.9,1805.8,5.53771]
[1743780815980,0.05,1805.9,1805.7,6.65100438]
[1743780816597,0.05,1805.9,1805.8,5.53771]
[1743780816876,0.05,1805.9,1805.7,7.40811438]
[1743780817119,0.05,1805.9,1805.8,5.53771]
[1743780817321,0.05,1805.9,1805.7,7.40811438]
[1743780817616,0.05,1805.9,1805.7,0.7572]
[1743780817817,5.58767,1805.9,1805.5,5.53842]
[1743780818023,5.53801,1805.8,1805.4,6.30716]
[1743780818223,5.53851,1805.6,1805.2,0.761]
[1743780818820,5.53955,1805.2,1804.9,0.8261]
[1743780819003,5.53955,1805.2,1804.8,5.5406]
[1743780819323,0.85511673,1805.3,1804.8,5.54075]
[1743780819519,5.53955,1805.2,1804.6,6.36744]
[1743780819680,5.54,1805.1,1804.6,6.36737]
[1743780819883,5.54024,1805.0,1804.6,0.8261]
[1743780820076,11.0807,1805.0,1804.5,5.54158]
[1743780820382,5.54017,1805.0,1804.6,5.54125]
[1743780820579,6.648166,1805.0,1804.2,5.54261]
[1743780820785,5.5412,1804.7,1804.2,5.54234]
[1743780820975,5.5412,1804.7,1804.3,5.54218]
[1743780821175,5.54151,1804.6,1804.2,11.08484]
[1743780821705,11.50174743,1804.6,1804.2,5.54234]
[1743780821907,5.54225,1804.4,1804.0,6.33353]
[1743780822225,1.56880217,1804.6,1804.4,5.54199]
[1743780822424,0.41862743,1804.6,1804.2,5.54237]
[1743780822638,6.928,1804.7,1804.4,5.54189]
[1743780822784,8.98081,1805.0,1804.6,5.54127]
[1743780823089,0.85885373,1805.3,1805.0,5.54012]
[1743780823290,3.0,1805.3,1805.0,5.54016]
[1743780823477,5.53863,1805.5,1805.1,5.53974]
[1743780823675,5.53958,1805.2,1804.8,0.8181]
[1743780823919,3.0,1805.3,1804.5,6.33298]
[1743780824227,11.0818,1804.8,1804.4,5.54195]
[1743780824520,5.54151,1804.6,1804.2,6.33401]
[1743780824825,5.54151,1804.6,1804.2,11.87623]
[1743780825121,5.54133,1804.7,1804.3,5.54218]
[1743780825318,8.54052,1804.9,1804.2,6.33396]
[1743780825485,5.54169,1804.6,1804.2,5.54242]
[1743780825686,5.54115,1804.7,1804.3,5.54203]
[1743780826183,8.54077,1804.9,1804.5,5.54159]
[1743780826388,5.54077,1804.9,1804.5,5.5416]
[1743780826583,5.54078,1804.8,1804.3,5.54216]
[1743780826802,5.54078,1804.8,1804.4,5.54175]
[1743780827023,6.648936,1804.8,1804.4,5.54195]
[1743780827229,5.54109,1804.7,1804.3,5.54214]
[1743780827528,5.96194703,1805.0,1804.6,5.54127]
[1743780827700,5.54018,1805.0,1804.5,0.05541276]
[1743780827897,5.54018,1805.0,1804.6,5.54125]
[1743780827898,11.08055,1805.0,1804.6,5.54125]
[1743780828219,5.54078,1804.8,1804.4,11.87821]
[1743780828382,5.54017,1805.0,1804.5,5.54158]
[1743780828583,5.54067,1804.9,1804.5,5.54158]
[1743780828822,5.54133,1804.7,1804.3,5.54227]
[1743780828993,5.54133,1804.7,1804.1,0.8195]
[1743780828994,5.54181,1804.5,1804.2,5.5426]
[1743780829194,3.0,1804.8,1804.1,0.8195]
[1743780829517,5.5417,1804.5,1804.1,6.36242]
[1743780829722,5.54181,1804.5,1804.1,6.36242]
[1743780829918,5.982,1804.6,1804.1,0.8195]
[1743780830129,5.982,1804.6,1804.2,5.54247]
[1743780830432,5.54173,1804.5,1804.1,6.36225]
[1743780830611,1.0388,1804.6,1804.1,0.8195]
[1743780830924,5.54172,1804.5,1804.2,5.54244]
[1743780831086,5.5414,1804.6,1804.2,5.54242]
[1743780831290,5.5414,1804.6,1804.2,5.54255]
[1743780831617,8.54104,1804.8,1803.9,0.7534]
[1743780831800,5.54204,1804.4,1804.0,5.5431]
[1743780832119,6.536804,1804.4,1803.9,6.29673]
[1743780832322,6.536804,1804.4,1804.0,5.54309]
[1743780832625,5.54232,1804.3,1803.9,6.29693]
[1743780832924,3.0,1804.7,1804.4,5.54187]
[1743780833230,5.54096,1804.8,1804.5,5.54168]
[1743780833392,5.54123,1804.7,1804.3,6.3307]
[1743780833900,5.54123,1804.7,1804.3,6.33065]
[1743780834236,11.08118,1804.9,1804.5,5.54155]
[1743780834398,5.96200596,1804.9,1804.6,5.54132]
[1743780834600,5.96209596,1804.9,1804.5,5.54169]
[1743780834798,5.54018,1805.0,1804.4,0.05541481]
[1743780834999,5.54068,1804.9,1804.5,5.54168]
[1743780835308,5.54083,1804.8,1804.5,5.54151]
[1743780835506,5.54083,1804.8,1804.3,0.7885]
[1743780835507,5.54186,1804.5,1804.3,0.7885]
[1743780835828,0.4406,1804.8,1804.3,6.33069]
[1743780836033,5.54243,1804.3,1804.0,6.35659]
[1743780836331,8.54152,1804.6,1804.0,0.8136]
[1743780836490,5.54284,1804.2,1803.8,11.08742]
[1743780836690,1.108516,1804.2,1803.7,0.7673]
[1743780836922,11.0857,1804.2,1803.8,5.54364]
[1743780837123,5.98214,1804.6,1803.8,5.54385]
[1743780837422,5.98213,1804.6,1804.2,5.54247]
[1743780837629,0.4406,1804.6,1804.1,5.54287]
[1743780837794,5.5422,1804.4,1804.0,5.54313]
[1743780837996,0.4406,1804.6,1804.2,5.54241]
[1743780837997,5.98217,1804.6,1804.2,5.54241]
[1743780838209,0.4406,1804.6,1804.3,5.54231]
[1743780838411,0.4406,1804.6,1804.0,0.554313]
[1743780838412,5.54167,1804.6,1804.2,6.35575]
[1743780838633,5.54186,1804.5,1804.2,6.35579]
[1743780838833,5.54078,1804.8,1804.2,0.8132]
[1743780839037,13.31569423,1804.9,1804.2,0.8132]
[1743780839038,5.54114,1804.7,1804.3,5.54218]
[1743780839237,12.20698813,1804.9,1803.9,0.8089]
[1743780839438,11.08425,1804.4,1804.0,5.54314]
[1743780839742,5.54183,1804.5,1804.1,5.54292]
[1743780839947,5.54118,1804.7,1804.3,5.5421]
[1743780840101,5.54157,1804.6,1804.2,5.54256]
[1743780840442,7.3646,1804.9,1804.4,3.0]
[1743780840608,5.54,1805.1,1804.7,5.54098]
[1743780840808,5.54,1805.1,1804.7,11.0819]
[1743780841001,5.54,1805.1,1804.7,5.54092]
[1743780841204,5.54031,1805.0,1804.6,5.54125]
[1743780841395,5.54106,1804.8,1804.4,5.542]
[1743780841600,5.54106,1804.8,1804.5,5.54158]
[1743780841840,0.59574938,1805.0,1804.3,0.8106]
[1743780842046,5.54186,1804.5,1804.2,5.54251]
[1743780842195,5.54189,1804.5,1804.1,6.35337]
[1743780842400,1.108331,1804.5,1804.1,0.8106]
[1743780842598,5.54179,1804.5,1804.1,6.35352]
[1743780842810,5.54179,1804.5,1804.2,5.54262]
[1743780843010,5.54144,1804.6,1804.3,5.54218]
[1743780843240,5.9817,1804.7,1804.3,5.54218]
[1743780843430,5.54128,1804.7,1804.3,5.54211]
[1743780843628,5.54128,1804.7,1804.4,5.54188]
[1743780843629,7.341598,1804.7,1804.4,5.54188]
[1743780843939,5.54119,1804.7,1804.4,5.54188]
[1743780844549,3.0,1804.7,1804.4,5.54188]
[1743780845050,5.54053,1804.9,1804.5,5.54165]
[1743780845347,5.54029,1805.0,1804.7,5.54099]
[1743780845504,11.48939361,1805.1,1804.7,5.54097]
[1743780845700,5.94937361,1805.1,1804.7,5.54097]
[1743780845906,5.54037,1805.0,1804.6,6.31715]
[1743780846271,5.54037,1805.0,1804.7,5.54093]
[1743780846427,5.54037,1805.0,1804.6,0.7759]
[1743780846428,5.54056,1804.9,1804.6,0.7759]
[1743780846603,5.54004,1805.1,1804.7,5.54083]
[1743780847004,3.0,1805.1,1804.8,5.54068]
[1743780847251,6.39512051,1805.3,1805.0,5.54001]
[1743780847404,1.49615963,1805.5,1804.8,5.54071]
[1743780847405,7.03482963,1805.5,1804.8,5.54071]
[1743780847604,0.28901853,1805.5,1805.3,5.53922]
[1743780848048,3.0,1805.6,1805.3,5.53922]
[1743780848214,5.5383,1805.7,1804.9,0.8205]
[1743780848417,0.4406,1805.4,1804.7,0.811]
[1743780848631,5.54022,1805.0,1804.7,0.811]
[1743780849142,5.5396,1805.2,1804.8,5.5406]
[1743780849326,11.08,1805.1,1804.7,6.35208]
[1743780849536,5.53992,1805.1,1804.7,11.89289]
[1743780849851,5.53959,1805.2,1804.8,5.54049]
[1743780850004,5.53988,1805.1,1804.7,6.35203]
[1743780850209,5.53988,1805.1,1804.7,6.35197]
[1743780850513,5.53988,1805.1,1804.7,6.35196]
[1743780850837,5.96096184,1805.2,1804.8,5.54078]
[1743780851150,5.53987,1805.1,1804.8,5.54077]
[1743780851316,5.54065,1804.9,1804.4,6.31529]
[1743780851644,8.53981,1805.2,1804.4,6.31529]
[1743780851645,3.4166251,1805.2,1804.5,5.54154]
[1743780851806,3.4166251,1805.2,1804.4,0.7733]
[1743780851807,11.08082,1805.0,1804.6,5.54122]
[1743780852007,5.54057,1804.9,1804.5,5.54152]
[1743780852433,1.108093,1804.9,1804.4,0.7733]
[1743780852647,5.54108,1804.8,1804.4,11.85709]
[1743780852847,5.54097,1804.8,1804.4,0.7733]
[1743780853037,5.54097,1804.8,1804.5,5.54163]
[1743780853232,5.54052,1804.9,1804.5,5.54159]
[1743780853464,5.54052,1804.9,1804.5,5.54155]
[1743780853664,14.0799,1805.1,1804.7,5.54098]
[1743780853830,14.07992,1805.1,1804.7,5.54092]
[1743780854168,5.54016,1805.0,1804.6,5.54127]
[1743780854462,5.54016,1805.0,1804.7,5.54108]
[1743780854958,5.54016,1805.0,1804.6,5.54127]
[1743780855146,8.53989,1805.1,1804.7,5.54087]
[1743780855351,0.8572251,1805.2,1804.4,6.31529]
[1743780855352,0.8572251,1805.2,1804.6,0.554127]
[1743780855525,5.53869,1805.5,1805.0,5.54014]
[1743780855526,5.53905,1805.4,1805.0,5.54014]
[1743780855728,5.53928,1805.3,1804.9,5.54044]
[1743780855956,8.97952,1805.5,1805.0,0.05539994]
[1743780856223,5.53876,1805.5,1805.2,5.53944]
[1743780856554,5.53937,1805.3,1804.9,5.54036]
[1743780856759,5.53987,1805.1,1804.8,5.5406]
[1743780857080,5.53987,1805.1,1804.7,6.31385]
[1743780857254,5.53988,1805.1,1804.7,6.31385]
[1743780857566,5.53988,1805.1,1804.5,5.54142]
[1743780857567,6.137938,1805.1,1804.6,5.54124]
[1743780857872,11.93565943,1805.2,1804.8,5.54068]
[1743780858069,0.41572943,1805.2,1804.9,5.54035]
[1743780858368,5.53913,1805.4,1805.1,5.53984]
[1743780858748,0.41203128,1805.4,1805.1,5.53984]
[1743780858953,5.53895,1805.4,1805.1,5.53984]
[1743780859260,5.53941,1805.3,1804.9,6.36676]
[1743780859467,5.53868,1805.5,1804.9,0.8263]
[1743780859635,5.53868,1805.5,1805.1,5.53969]
[1743780859836,8.97893,1805.6,1805.2,5.53945]
[1743780859837,14.51743,1805.6,1805.2,5.53945]
[1743780860163,0.4406,1805.6,1804.9,6.3667]
[1743780860363,5.53934,1805.3,1804.9,6.3667]
[1743780860562,5.5397,1805.2,1804.8,5.54076]
[1743780860770,11.07949,1805.2,1804.8,5.54076]
[1743780861062,11.07949,1805.2,1804.7,6.33777]
[1743780861063,5.54017,1805.0,1804.7,6.33775]
[1743780861364,5.5399,1805.1,1804.7,5.54108]
[1743780861560,5.5399,1805.1,1804.8,5.54067]
[1743780861771,4.13745061,1804.9,1804.0,0.778]
[1743780862085,0.4406,1804.4,1804.2,5.54246]
[1743780862369,5.54247,1804.3,1803.9,5.54331]
[1743780862554,6.912,1804.4,1804.0,5.54293]
[1743780862750,5.54249,1804.3,1803.9,5.54334]